bitfinex-derivatives/quotes_BTCF0:USTF0_20250823
["timestamp","ask_amount","ask_price","bid_price","bid_amount"]
[1755957828786,1.274009,114920.0,114910.0,0.3087443]
[1755957828976,1.274009,114920.0,114910.0,0.38689512]
[1755957829690,0.087049,114920.0,114910.0,0.6695443]
[1755957830187,0.093049,114920.0,114910.0,0.3097443]
[1755957830377,0.093049,114920.0,114910.0,0.74864816]
[1755957830571,0.096049,114920.0,114910.0,0.6705443]
[1755957831185,0.096049,114920.0,114910.0,0.3878287]
[1755957831377,0.096049,114920.0,114910.0,0.8878287]
[1755957832186,0.096049,114920.0,114910.0,0.8097443]
[1755957832883,0.096049,114920.0,114910.0,1.1705443]
[1755957837382,0.096049,114920.0,114910.0,1.66146783]
[1755957837582,0.096049,114920.0,114910.0,1.85746945]
[1755957837984,0.096049,114920.0,114910.0,2.11218152]
[1755957838484,0.0960467,114920.0,114910.0,2.11218152]
[1755957839280,0.0960467,114920.0,114910.0,2.19020731]
[1755957839488,0.0960467,114920.0,114910.0,2.68113084]
[1755957840587,0.0960467,114920.0,114910.0,2.19020731]
[1755957842882,0.009,114920.0,114910.0,2.19020731]
[1755957843793,0.009,114920.0,114910.0,2.68113084]
[1755957843995,0.0870368,114940.0,114920.0,0.62576033]
[1755957844301,0.0870368,114940.0,114930.0,0.38530499]
[1755957844595,0.11372478,114940.0,114930.0,0.38530499]
[1755957844792,0.12272478,114940.0,114930.0,0.38530499]
[1755957845391,0.09931478,114940.0,114930.0,0.38530499]
[1755957845593,0.09931478,114940.0,114930.0,0.88530499]
[1755957845794,0.0870368,114940.0,114930.0,0.88530499]
[1755957846096,0.0900368,114940.0,114930.0,0.88530499]
[1755957846801,0.0940368,114940.0,114930.0,0.88530499]
[1755957847295,0.0920368,114940.0,114930.0,0.88530499]
[1755957847481,0.0900368,114940.0,114930.0,0.88530499]
[1755957847796,0.0900368,114940.0,114930.0,0.8072792]
[1755957848180,0.0900368,114940.0,114930.0,2.12052273]
[1755957848181,0.003,114940.0,114930.0,2.12052273]
[1755957848397,0.003,114940.0,114930.0,2.48132273]
[1755957848795,0.003,114940.0,114930.0,1.9903992]
[1755957849498,0.0900316,114940.0,114930.0,1.9903992]
[1755957849691,0.003,114940.0,114930.0,2.83132273]
[1755957849897,0.003,114940.0,114930.0,2.90934852]
[1755957850597,0.003,114940.0,114930.0,2.83132273]
[1755957852196,0.0900317,114940.0,114930.0,2.83132273]
[1755957855296,0.0900317,114940.0,114930.0,2.90934852]
[1755957855698,0.0900317,114940.0,114930.0,2.41842499]
[1755957855889,0.0900317,114940.0,114930.0,2.90934852]
[1755957857801,0.0900317,114940.0,114930.0,2.83132273]
[1755957858202,0.0900317,114940.0,114930.0,2.00900273]
[1755957858404,0.0900317,114940.0,114930.0,2.82780273]
[1755957859206,0.0900317,114940.0,114930.0,2.0868792]
[1755957859401,0.1134417,114940.0,114930.0,1.2680792]
[1755957859599,0.1214517,114940.0,114930.0,1.1680792]
[1755957859906,0.3714517,114940.0,114930.0,1.8866392]
[1755957860410,0.7322517,114940.0,114930.0,0.7072792]
[1755957860703,0.7322517,114940.0,114930.0,0.62024]
[1755957861100,0.7322517,114940.0,114930.0,0.7072792]
[1755957861696,0.7322517,114940.0,114930.0,0.62024]
[1755957862098,0.7322517,114940.0,114930.0,0.7072792]
[1755957864810,0.4822517,114940.0,114930.0,0.7072792]
[1755957865210,0.4822517,114940.0,114930.0,0.2072792]
[1755957865511,0.4822517,114940.0,114930.0,0.3072792]
[1755957866109,0.1214517,114940.0,114930.0,0.3072792]
[1755957866404,0.003,114940.0,114930.0,0.6680792]
[1755957866812,0.0900316,114940.0,114930.0,0.6680792]
[1755957867014,0.003,114940.0,114930.0,0.6680792]
[1755957867403,0.003,114940.0,114930.0,1.1680792]
[1755957867712,0.0870296,114950.0,114940.0,0.1646716]
[1755957867914,0.0870296,114950.0,114940.0,1.1198116]
[1755957868116,0.0870296,114950.0,114940.0,1.19783739]
[1755957869109,0.0930296,114950.0,114940.0,1.19783739]
[1755957870114,0.0930296,114950.0,114940.0,0.38099739]
[1755957871307,0.0930296,114950.0,114940.0,0.8029716]
[1755957873712,0.0978296,114950.0,114940.0,0.8029716]
[1755957873913,0.1242396,114950.0,114940.0,0.8029716]
[1755957874413,0.1242396,114950.0,114940.0,0.88099739]
[1755957874716,0.1212396,114950.0,114940.0,0.88099739]
[1755957874919,0.4820396,114950.0,114940.0,0.88099739]
[1755957875106,0.4820396,114950.0,114940.0,0.8029716]
[1755957875414,0.1212396,114950.0,114940.0,0.8029716]
[1755957875610,0.1152396,114950.0,114940.0,0.88099739]
[1755957875816,0.1242396,114950.0,114940.0,0.88099739]
[1755957876015,0.1212396,114950.0,114940.0,0.88099739]
[1755957876215,0.1068296,114950.0,114940.0,0.88099739]
[1755957876915,0.0930296,114950.0,114940.0,0.88099739]
[1755957877114,0.4538296,114950.0,114940.0,0.88099739]
[1755957877913,0.4538296,114950.0,114940.0,0.79396579]
[1755957878119,0.4850396,114950.0,114940.0,0.79396579]
[1755957879320,0.4850396,114950.0,114940.0,0.71594]
[1755957879525,0.4850396,114950.0,114940.0,0.88121689]
[1755957879825,0.4930496,114950.0,114940.0,0.88121689]
[1755957880418,0.4930496,114950.0,114940.0,0.69418774]
[1755957882021,0.4930496,114950.0,114940.0,0.78121934]
[1755957883717,0.1322496,114950.0,114940.0,0.78121934]
[1755957883927,0.4930496,114950.0,114940.0,0.78121934]
[1755957884115,0.4930496,114950.0,114940.0,0.69418774]
[1755957887329,0.7480496,114950.0,114940.0,0.69418774]
[1755957887525,1.23897313,114950.0,114940.0,0.69418774]
[1755957887719,1.23897313,114950.0,114940.0,0.61594]
[1755957887918,1.23897313,114950.0,114940.0,0.11594]
[1755957888622,0.7480496,114950.0,114940.0,0.11594]
[1755957889628,0.7480496,114950.0,114940.0,0.19418774]
[1755957890727,0.7430496,114950.0,114940.0,0.19418774]
[1755957893929,0.7480496,114950.0,114940.0,0.19418774]
[1755957896830,0.7430496,114950.0,114940.0,0.19418774]
[1755957898327,0.7480496,114950.0,114940.0,0.11594]
[1755957898922,0.4980496,114950.0,114940.0,0.2029716]
[1755957899125,0.1322496,114950.0,114940.0,0.5637716]
[1755957899333,0.1322496,114950.0,114940.0,0.28121934]
[1755957899631,0.4930496,114950.0,114940.0,0.11594]
[1755957899828,0.1322496,114950.0,114940.0,0.11594]
[1755957900028,0.4930496,114950.0,114940.0,0.11594]
[1755957903826,0.4980496,114950.0,114940.0,0.0835]
[1755957904131,0.4980496,114950.0,114940.0,0.06973]
[1755957904525,0.4980496,114950.0,114940.0,0.11733]
[1755957905129,0.4980496,114950.0,114940.0,0.0232]
[1755957905525,0.4980496,114950.0,114940.0,0.03319]
[1755957906134,1.00808337,114950.0,114940.0,0.10144774]
[1755957906327,1.00808337,114950.0,114940.0,0.07824774]
[1755957906820,1.00888337,114950.0,114940.0,0.07824774]
[1755957907023,1.25888337,114950.0,114940.0,0.04902614]
[1755957907220,0.0870392,114930.0,114920.0,0.15129003]
[1755957907425,1.2576792,114930.0,114920.0,0.04187889]
[1755957907627,1.2576792,114930.0,114920.0,0.05186889]
[1755957907829,1.2576792,114930.0,114920.0,0.07318889]
[1755957908323,1.2576792,114930.0,114920.0,0.04187889]
[1755957908518,1.2586792,114930.0,114920.0,0.04187889]
[1755957908725,1.74960273,114930.0,114920.0,0.04287889]
[1755957913036,1.99960273,114930.0,114920.0,0.04287889]
[1755957913231,1.99960273,114930.0,114920.0,0.01828889]
[1755957914239,1.99960273,114930.0,114920.0,0.04287889]
[1755957914839,1.99960273,114930.0,114920.0,0.01828889]
[1755957917939,1.99960273,114930.0,114920.0,0.04287889]
[1755957918639,1.99960273,114930.0,114920.0,0.01828889]
[1755957918940,1.99960273,114930.0,114920.0,0.04287889]
[1755957921135,1.74960273,114930.0,114920.0,0.04287889]
[1755957921540,1.74960273,114930.0,114920.0,0.01828889]
[1755957922746,1.74960273,114930.0,114920.0,0.04287889]
[1755957923344,1.74960273,114930.0,114920.0,0.01828889]
[1755957924045,1.74960273,114930.0,114920.0,0.04287889]
[1755957925346,1.74960273,114930.0,114920.0,0.01828889]
[1755957926254,1.74991553,114930.0,114920.0,0.01828889]
[1755957932158,1.74991553,114930.0,114920.0,0.04216889]
[1755957933660,2.11071553,114930.0,114920.0,0.04216889]
[1755957935466,2.11071553,114930.0,114920.0,0.01828889]
[1755957936161,2.11071553,114930.0,114920.0,0.04216889]
[1755957937660,2.11071553,114930.0,114920.0,0.01828889]
[1755957938969,2.11071553,114930.0,114920.0,0.04216889]
[1755957941662,2.11071553,114930.0,114920.0,0.07449889]
[1755957945472,2.11071553,114930.0,114920.0,0.05175889]
[1755957945666,2.11071553,114930.0,114920.0,0.04216889]
[1755957961785,2.11071553,114930.0,114920.0,0.02488]
[1755957965898,2.10963553,114930.0,114920.0,0.12023]
[1755957966189,1.30087553,114930.0,114920.0,0.12023]
[1755957966389,2.10963553,114930.0,114920.0,0.12023]
[1755957967291,1.6183992,114930.0,114920.0,0.12023]
[1755957967493,2.10963553,114930.0,114920.0,0.12023]
[1755957972781,1.30087553,114930.0,114920.0,0.12023]
[1755957972987,2.10947553,114930.0,114920.0,0.12023]
[1755957976594,2.10947553,114930.0,114920.0,0.10561]
[1755957977094,2.10947553,114930.0,114920.0,0.07239]
[1755957977395,2.10947553,114930.0,114920.0,0.05711]
[1755957978198,2.10947553,114930.0,114920.0,0.03449]
[1755957978395,2.10947553,114930.0,114920.0,0.02488]
[1755957978793,2.60071186,114930.0,114920.0,0.02488]
[1755957979396,2.68775846,114930.0,114900.0,0.11137]
[1755957979605,2.68775846,114930.0,114900.0,0.19844]
[1755957979606,1.29989083,114910.0,114900.0,0.19844]
[1755957979898,2.10829083,114910.0,114900.0,0.19844]
[1755957980401,2.12739998,114910.0,114900.0,0.19844]
[1755957980594,2.12739998,114910.0,114900.0,0.19944]
[1755957981000,2.12739998,114910.0,114900.0,0.20244]
[1755957981403,2.12739998,114910.0,114900.0,0.20144]
[1755957981702,2.12739998,114910.0,114900.0,0.12429]
[1755957983297,2.19816862,114910.0,114900.0,0.12429]
[1755957988498,2.44896862,114910.0,114900.0,1e-07]
[1755957988702,2.44816862,114910.0,114900.0,1e-07]
[1755957989904,2.19816862,114910.0,114900.0,1e-07]
[1755957990404,2.19816862,114910.0,114900.0,0.0244701]
[1755957999304,0.0870772,114880.0,114870.0,0.11299877]
[1755957999500,2.10787353,114880.0,114870.0,0.7042351]
[1755957999901,2.10787353,114880.0,114870.0,0.7287051]
[1755958000603,2.10787353,114880.0,114870.0,0.7337051]
[1755958001503,1.6166372,114880.0,114870.0,0.7337051]
[1755958001905,1.2558372,114880.0,114870.0,0.7337051]
[1755958002506,1.26665818,114880.0,114870.0,0.8337051]
[1755958003708,1.26665818,114880.0,114870.0,0.8317051]
[1755958003913,1.26665818,114880.0,114870.0,0.8337051]
[1755958004113,1.26665818,114880.0,114870.0,0.8317051]
[1755958005914,1.26665818,114880.0,114870.0,0.9177899]
[1755958006108,0.01082098,114880.0,114870.0,1.1677899]
[1755958006309,0.90569818,114880.0,114870.0,1.5285899]
[1755958006619,0.8948772,114880.0,114870.0,1.5285899]
[1755958007513,0.8948772,114880.0,114870.0,1.1677899]
[1755958007715,0.90586893,114880.0,114870.0,1.1677899]
[1755958009618,0.90586893,114880.0,114870.0,1.2459399]
[1755958013516,0.90586893,114880.0,114870.0,1.1677899]
[1755958014025,0.90586893,114880.0,114870.0,1.24599313]
[1755958014322,0.90586893,114880.0,114870.0,1.1677899]
[1755958019011,0.90586893,114880.0,114870.0,0.9177899]
[1755958020216,0.90546893,114880.0,114870.0,0.9177899]
[1755958020417,0.90546893,114880.0,114870.0,1.12720104]
[1755958020719,0.01099173,114880.0,114870.0,1.12720104]
[1755958020918,0.87038893,114880.0,114870.0,1.83733431]
[1755958021118,0.06306893,114880.0,114870.0,1.75902623]
[1755958021323,0.06306893,114880.0,114870.0,2.25902623]
[1755958021528,0.06306893,114880.0,114870.0,1.27655357]
[1755958021731,0.0106831,114880.0,114870.0,2.13800104]
[1755958021934,0.0106831,114880.0,114870.0,2.23800104]
[1755958022227,0.9482639,114890.0,114880.0,0.3051872]
[1755958022415,0.9482639,114890.0,114880.0,0.38348412]
[1755958022616,0.9482639,114890.0,114880.0,0.87472045]
[1755958022815,0.9482239,114890.0,114880.0,0.87472045]
[1755958023420,0.1409439,114890.0,114880.0,0.87472045]
[1755958023615,0.9481839,114890.0,114880.0,0.87472045]
[1755958023817,0.9481839,114890.0,114880.0,0.79642353]
[1755958024417,0.9481839,114890.0,114880.0,0.79646302]
[1755958024613,0.95918965,114890.0,114880.0,0.79646302]
[1755958025121,0.95918965,114890.0,114880.0,0.87575994]
[1755958026724,0.95918965,114890.0,114880.0,0.87675994]
[1755958028129,0.92741965,114890.0,114880.0,0.87675994]
[1755958028325,0.95918965,114890.0,114880.0,0.87675994]
[1755958028629,0.95918965,114890.0,114880.0,1.37675994]
[1755958030532,0.95918965,114890.0,114880.0,1.37676247]
[1755958031132,0.95918965,114890.0,114880.0,0.88548665]
[1755958031336,0.15194965,114890.0,114880.0,1.37676247]
[1755958031633,0.95890965,114890.0,114880.0,1.37676247]
[1755958031829,0.53773749,114910.0,114900.0,0.1821821]
[1755958031830,0.59160729,114910.0,114900.0,0.1821821]
[1755958032030,0.53142356,114910.0,114900.0,0.69644792]
[1755958032335,1.33834356,114910.0,114900.0,0.77474737]
[1755958032735,1.33834356,114910.0,114900.0,0.28347155]
[1755958033445,1.33934356,114910.0,114900.0,0.28347155]
[1755958034243,1.34034356,114910.0,114900.0,0.28347155]
[1755958034545,1.33934356,114910.0,114900.0,0.28447155]
[1755958034946,1.33834356,114910.0,114900.0,0.28447155]
[1755958035141,1.33834356,114910.0,114900.0,0.28547155]
[1755958036651,0.53141866,114910.0,114900.0,0.28547155]
[1755958036850,0.53141866,114910.0,114900.0,0.69844792]
[1755958037041,1.33817866,114910.0,114900.0,0.87674737]
[1755958037441,1.21935406,114910.0,114900.0,1.37674737]
[1755958037641,0.41259406,114910.0,114900.0,1.39417226]
[1755958037840,0.85851406,114910.0,114900.0,1.85497226]
[1755958038043,0.02969406,114910.0,114900.0,1.85497226]
[1755958038249,0.82582915,114910.0,114900.0,2.02667281]
[1755958038443,0.01910915,114910.0,114900.0,2.02667281]
[1755958039152,0.01910915,114910.0,114900.0,2.83335281]
[1755958039557,0.01910915,114910.0,114900.0,2.94276395]
[1755958041647,0.04120915,114910.0,114900.0,1.84068813]
[1755958041853,0.87953915,114910.0,114900.0,0.93400813]
[1755958042042,0.96659375,114910.0,114900.0,0.82459699]
[1755958042553,0.96659375,114910.0,114900.0,0.93400813]
[1755958042852,0.96659375,114910.0,114900.0,0.82459699]
[1755958043554,0.16003375,114910.0,114900.0,0.82459699]
[1755958043753,0.96651375,114910.0,114900.0,0.82459699]
[1755958043956,0.96651375,114910.0,114900.0,0.93400813]
[1755958044448,0.96651375,114910.0,114900.0,0.82459699]
[1755958045155,0.96651375,114910.0,114900.0,0.90266282]
[1755958046549,1.32731375,114910.0,114900.0,0.80266282]
[1755958047255,1.32731375,114910.0,114900.0,0.76989282]
[1755958047550,1.32731375,114910.0,114900.0,0.30243282]
[1755958047750,0.96651375,114910.0,114900.0,0.40243282]
[1755958049157,1.32731375,114910.0,114900.0,0.40243282]
[1755958049356,0.96651375,114910.0,114900.0,0.40243282]
[1755958049657,0.96623375,114910.0,114900.0,0.40243282]
[1755958050255,1.32703375,114910.0,114900.0,0.40243282]
[1755958051250,0.96623375,114910.0,114900.0,0.40243282]
[1755958051447,1.32703375,114910.0,114900.0,0.40243282]
[1755958051649,1.32703375,114910.0,114900.0,0.20476489]
[1755958051859,1.57703375,114910.0,114900.0,0.12048072]
[1755958052156,1.57703375,114910.0,114900.0,0.12947699]
[1755958052751,1.57703375,114910.0,114900.0,0.13893699]
[1755958053553,1.57703375,114910.0,114900.0,0.13793699]
[1755958053754,1.57703375,114910.0,114900.0,0.13893699]
[1755958054263,1.57703375,114910.0,114900.0,0.13793699]
[1755958054463,1.57703375,114910.0,114900.0,0.04041489]
[1755958055250,1.57703375,114910.0,114900.0,0.11848072]
[1755958058868,1.57703375,114910.0,114900.0,0.20554292]
[1755958059861,1.57703375,114910.0,114900.0,0.11848072]
[1755958061061,1.57703375,114910.0,114900.0,0.01742489]
[1755958061961,1.57703375,114910.0,114900.0,0.04237489]
[1755958062371,1.57703375,114910.0,114900.0,0.12044072]
[1755958062569,1.57703375,114910.0,114900.0,0.12990072]
[1755958062867,1.57703375,114910.0,114900.0,0.05183489]
[1755958063866,1.57703375,114910.0,114900.0,0.13786489]
[1755958064373,1.57703375,114910.0,114900.0,0.21593072]
[1755958064671,1.32663375,114910.0,114900.0,0.40299282]
[1755958065067,1.32663375,114910.0,114900.0,0.30299282]
[1755958065268,1.32663375,114910.0,114900.0,0.22492699]
[1755958065467,1.32663375,114910.0,114900.0,0.22592699]
[1755958066267,1.32663375,114910.0,114900.0,0.22692699]
[1755958066967,1.32663375,114910.0,114900.0,0.22592699]
[1755958067168,1.32663375,114910.0,114900.0,0.22692699]
[1755958068772,1.32663375,114910.0,114900.0,0.81820281]
[1755958068977,1.32647375,114910.0,114900.0,0.81820281]
[1755958069475,1.32647375,114910.0,114900.0,0.32692699]
[1755958071077,1.32647375,114910.0,114900.0,0.40499282]
[1755958072273,0.96567375,114910.0,114900.0,0.76579282]
[1755958072469,0.07297915,114910.0,114900.0,1.50706864]
[1755958072680,0.87857915,114910.0,114900.0,1.60706864]
[1755958072870,0.87857915,114910.0,114900.0,1.52900281]
[1755958073067,0.87857915,114910.0,114900.0,2.02900281]
[1755958073270,0.01910915,114910.0,114900.0,2.02900281]
[1755958073471,0.82466915,114910.0,114900.0,2.02900281]
[1755958073780,0.82466915,114910.0,114900.0,2.15160248]
[1755958073974,0.01910915,114910.0,114900.0,2.15160248]
[1755958074375,0.05090915,114910.0,114900.0,2.15160248]
[1755958074685,0.16049375,114910.0,114900.0,2.15160248]
[1755958077183,0.16049375,114910.0,114900.0,2.15160356]
[1755958078885,0.16049375,114910.0,114900.0,1.90160356]
[1755958079483,0.16049375,114910.0,114900.0,1.80160356]
[1755958079672,0.16049375,114910.0,114900.0,1.69219242]
[1755958080182,0.16049375,114910.0,114900.0,1.67900281]
[1755958080389,0.10616375,114910.0,114900.0,1.69219172]
[1755958080989,0.13782375,114910.0,114900.0,1.67900281]
[1755958081285,0.13782375,114910.0,114900.0,1.69219172]
[1755958081483,0.15934375,114910.0,114900.0,1.69219172]
[1755958081984,0.15934375,114910.0,114900.0,1.40968262]
[1755958082484,0.15934375,114910.0,114900.0,0.9184068]
[1755958082686,0.15934375,114910.0,114900.0,0.7313447]
[1755958082887,0.15934375,114910.0,114900.0,0.8313447]
[1755958083086,0.96458375,114910.0,114900.0,0.9184068]
[1755958084191,0.96458375,114910.0,114900.0,1.40968262]
[1755958084789,0.96458375,114910.0,114900.0,1.32262052]
[1755958085490,0.96458375,114910.0,114900.0,1.32261968]
[1755958085887,0.96458375,114910.0,114900.0,1.40968178]
[1755958086981,0.15934375,114910.0,114900.0,1.40968178]
[1755958087589,0.15934375,114910.0,114900.0,1.33139088]
[1755958087787,0.15934375,114910.0,114900.0,1.44080202]
[1755958088785,0.15934375,114910.0,114900.0,1.44110092]
[1755958093394,0.15934375,114910.0,114900.0,1.40998087]
[1755958094489,0.15934375,114910.0,114900.0,1.40983085]
[1755958096095,0.15934375,114910.0,114900.0,0.91870505]
[1755958096288,0.15934375,114910.0,114900.0,1.40983085]
[1755958096488,0.15934375,114910.0,114900.0,1.33153976]
[1755958097297,0.15934375,114910.0,114900.0,1.40985273]
[1755958097495,0.15934375,114910.0,114900.0,1.33153976]
[1755958097795,0.15934375,114910.0,114900.0,1.40985391]
[1755958098095,0.15934375,114910.0,114900.0,1.39636694]
[1755958098291,0.15934375,114910.0,114900.0,1.33125312]
[1755958098597,0.15934375,114910.0,114900.0,1.44066426]
[1755958098794,0.15934375,114910.0,114900.0,2.24550426]
[1755958101303,0.15934375,114910.0,114900.0,2.24550874]
[1755958101490,0.1402346,114910.0,114900.0,2.24550874]
[1755958102587,0.1402346,114910.0,114900.0,2.1360976]
[1755958104408,0.1402346,114910.0,114900.0,2.13610103]
[1755958105302,0.0870546,114910.0,114900.0,2.13610103]
[1755958105700,0.1187146,114910.0,114900.0,2.13610103]
[1755958106298,0.1402346,114910.0,114900.0,2.13610103]
[1755958106698,0.1402346,114910.0,114900.0,2.13590103]
[1755958106998,0.1402346,114910.0,114900.0,2.21427123]
[1755958107198,0.0870546,114910.0,114900.0,2.21427123]
[1755958107704,0.0870546,114910.0,114900.0,2.21427185]
[1755958108203,0.0870546,114910.0,114900.0,2.21427213]
[1755958111806,0.0870546,114910.0,114900.0,1.40963213]
[1755958112003,0.0870546,114910.0,114900.0,2.21407213]
[1755958114002,0.0870546,114910.0,114900.0,2.21378032]
[1755958116896,0.0870546,114910.0,114900.0,2.13541012]
[1755958117305,0.0870546,114910.0,114900.0,2.1353439]
[1755958117511,0.0870546,114910.0,114900.0,2.24506218]
[1755958119805,0.0870546,114910.0,114900.0,2.1353439]
[1755958120101,0.0870546,114910.0,114900.0,2.24508059]
[1755958120508,0.0870546,114910.0,114900.0,2.1353439]
[1755958121413,0.0870546,114910.0,114900.0,1.3309039]
[1755958121607,0.0870546,114910.0,114900.0,2.1351039]
[1755958122708,0.479513,114920.0,114910.0,0.0870545]
[1755958123011,0.500523,114920.0,114910.0,0.88794477]
[1755958123309,0.447853,114920.0,114910.0,0.88794477]
[1755958123514,0.447853,114920.0,114910.0,0.80955996]
[1755958123714,0.447853,114920.0,114910.0,0.88793384]
[1755958124211,0.482723,114920.0,114910.0,0.88793384]
[1755958124726,0.447853,114920.0,114910.0,0.80955996]
[1755958125016,0.447853,114920.0,114910.0,0.91929665]
[1755958125207,0.447853,114920.0,114910.0,0.42817085]
[1755958125402,0.3608,114920.0,114910.0,1.41042245]
[1755958125604,0.3608,114940.0,114930.0,0.1598494]
[1755958125914,0.3608,114940.0,114930.0,1.74124358]
[1755958126510,0.3608,114940.0,114930.0,2.24124358]
[1755958126714,0.01853929,114940.0,114930.0,2.25190429]
[1755958127017,0.4688383,114950.0,114940.0,0.1327519]
[1755958127315,0.5037083,114950.0,114940.0,0.79845957]
[1755958127509,0.52205981,114950.0,114940.0,0.30732699]
[1755958127716,0.52205981,114950.0,114940.0,0.79845279]
[1755958128212,0.52205981,114950.0,114940.0,0.79945279]
[1755958128418,0.52205981,114950.0,114940.0,0.80045279]
[1755958129512,0.59139073,114950.0,114940.0,0.80045279]
[1755958129713,0.59139073,114950.0,114940.0,0.80045278]
[1755958129914,0.52205981,114950.0,114940.0,0.80045278]
[1755958130816,0.52205981,114950.0,114940.0,0.7221911]
[1755958133019,0.46617981,114950.0,114940.0,0.7221911]
[1755958133413,0.50104981,114950.0,114940.0,0.7221911]
[1755958133713,0.52205981,114950.0,114940.0,1.2221911]
[1755958135923,0.52205981,114950.0,114940.0,1.21198748]
[1755958136124,0.52205981,114950.0,114940.0,1.2221689]
[1755958138517,1.32557981,114950.0,114940.0,1.2221689]
[1755958139422,1.32557981,114950.0,114940.0,1.135137]
[1755958139723,1.81670561,114950.0,114940.0,1.135137]
[1755958140119,0.52205981,114950.0,114940.0,1.135137]
[1755958140322,1.32549981,114950.0,114940.0,1.2221688]
[1755958140811,1.32549981,114950.0,114940.0,1.2211688]
[1755958141015,1.32549981,114950.0,114940.0,0.7221688]
[1755958142316,1.32549981,114950.0,114940.0,0.231043]
[1755958142519,1.32549981,114950.0,114940.0,0.8211688]
[1755958144326,1.32549981,114950.0,114940.0,0.81096537]
[1755958144525,1.32549981,114950.0,114940.0,0.82116706]
[1755958146120,1.32549981,114950.0,114940.0,0.80789101]
[1755958146425,1.32549981,114950.0,114940.0,0.82116933]
[1755958147022,0.52205981,114950.0,114940.0,0.82116933]
[1755958147227,1.32533981,114950.0,114940.0,0.82116933]
[1755958148020,1.32533981,114950.0,114940.0,0.89943101]
[1755958148329,1.32533981,114950.0,114940.0,0.89967149]
[1755958148921,1.32438981,114950.0,114940.0,0.89967149]
[1755958149122,1.32438981,114950.0,114940.0,0.82140981]
[1755958150222,1.29046981,114950.0,114940.0,0.82140981]
[1755958150427,1.29038981,114950.0,114940.0,0.82140981]
[1755958150929,1.32430981,114950.0,114940.0,0.82140981]
[1755958151128,1.32430981,114950.0,114940.0,1.32140981]
[1755958153538,1.32430981,114950.0,114940.0,1.39967149]
[1755958153928,1.32430981,114950.0,114940.0,1.38946808]
[1755958154124,1.32430981,114950.0,114940.0,1.39968887]
[1755958154321,1.32418981,114950.0,114940.0,2.20276887]
[1755958154525,1.32418981,114950.0,114940.0,2.20277528]
[1755958156225,1.32418981,114950.0,114940.0,1.39969528]
[1755958156425,0.4688383,114950.0,114940.0,1.39969528]
[1755958156626,1.3057183,114950.0,114940.0,1.39969528]
[1755958157931,1.3057183,114950.0,114940.0,1.3214336]
[1755958160437,0.5027583,114950.0,114940.0,1.3214336]
[1755958161837,0.1419583,114950.0,114940.0,1.3214336]
[1755958162136,0.05493,114950.0,114940.0,1.3214336]
[1755958162437,0.1419542,114950.0,114940.0,1.3214336]
[1755958163230,0.1419542,114950.0,114940.0,1.2976876]
[1755958163537,0.1419542,114950.0,114940.0,1.39942678]
[1755958165331,0.1419542,114950.0,114940.0,1.39942677]
[1755958166040,0.05493,114950.0,114940.0,1.39942677]
[1755958166236,0.05493,114950.0,114940.0,1.43088308]
[1755958166636,0.05493,114950.0,114940.0,1.32114612]
[1755958167338,0.05493,114950.0,114940.0,1.43073762]
[1755958168340,1.31996443,114960.0,114950.0,0.2055142]
[1755958168643,1.31996443,114960.0,114950.0,0.72009852]
[1755958169037,1.31996443,114960.0,114950.0,0.79837936]
[1755958169237,1.31996443,114960.0,114950.0,0.72009852]
[1755958170144,1.32096443,114960.0,114950.0,0.72009852]
[1755958170337,1.32096443,114960.0,114950.0,0.79837681]
[1755958171642,1.32096443,114960.0,114950.0,0.72009852]
[1755958172041,1.31996443,114960.0,114950.0,0.72109852]
[1755958172445,0.51724443,114960.0,114950.0,0.72109852]
[1755958172650,1.34236443,114960.0,114950.0,0.72109852]
[1755958172841,0.53996443,114960.0,114950.0,0.69764]
[1755958173045,1.34236443,114960.0,114950.0,0.72108778]
[1755958173641,1.34236443,114960.0,114950.0,0.70784253]
[1755958173851,1.34236443,114960.0,114950.0,0.72108808]
[1755958175254,1.34228443,114960.0,114950.0,0.79937066]
[1755958175551,1.34228443,114960.0,114950.0,0.89937066]
[1755958175750,0.53996443,114960.0,114950.0,0.89937066]
[1755958175950,1.34228443,114960.0,114950.0,0.89937066]
[1755958176450,0.3774935,114960.0,114950.0,0.82108808]
[1755958176649,0.4645102,114960.0,114950.0,0.99937381]
[1755958176847,0.1037102,114960.0,114950.0,0.92108808]
[1755958177145,0.1264302,114960.0,114950.0,0.99937172]
[1755958177350,0.1595702,114960.0,114950.0,1.7505951]
[1755958177757,0.1595702,114960.0,114950.0,1.2594693]
[1755958178058,0.1595702,114960.0,114950.0,2.2505951]
[1755958179051,0.1595702,114960.0,114950.0,2.12775805]
[1755958179348,0.1595702,114960.0,114950.0,1.33876418]
[1755958179652,0.1595702,114960.0,114950.0,1.40138417]
[1755958179848,1.011496,114960.0,114950.0,1.21435997]
[1755958180046,1.011496,114960.0,114950.0,0.68948417]
[1755958180450,1.011496,114960.0,114950.0,0.18948417]
[1755958180644,1.011496,114960.0,114950.0,0.31025847]
[1755958181355,1.011496,114960.0,114950.0,0.80138427]
[1755958182256,1.011496,114960.0,114950.0,0.80138482]
[1755958182455,0.650696,114960.0,114950.0,0.80138478]
[1755958182654,0.5203702,114960.0,114950.0,0.80138478]
[1755958182852,0.1595702,114960.0,114950.0,0.80138484]
[1755958183157,0.1595702,114960.0,114950.0,0.90138484]
[1755958185062,0.5203702,114960.0,114950.0,0.83876485]
[1755958185254,0.9615702,114960.0,114950.0,0.83876485]
[1755958186155,1.3223702,114960.0,114950.0,0.83876485]
[1755958187560,0.4872302,114960.0,114950.0,0.83876485]
[1755958187758,1.3222902,114960.0,114950.0,0.83876485]
[1755958188057,0.9614902,114960.0,114950.0,0.83876485]
[1755958188762,0.9614902,114960.0,114950.0,1.33876485]
[1755958191667,0.1595702,114960.0,114950.0,1.33876708]
[1755958192158,1.3221702,114960.0,114950.0,1.33876708]
[1755958192565,0.5203702,114960.0,114950.0,1.33876708]
[1755958192764,1.3221302,114960.0,114950.0,1.33876708]
[1755958194762,1.3221302,114960.0,114950.0,1.41704721]
[1755958197964,1.3221302,114960.0,114950.0,1.41675683]
[1755958198358,0.9613302,114960.0,114950.0,1.41675683]
[1755958198764,1.3221302,114960.0,114950.0,1.4480682]
[1755958199359,0.9613302,114960.0,114950.0,1.4480682]
[1755958199567,0.9613302,114960.0,114950.0,1.3384767]
[1755958199755,0.1595702,114960.0,114950.0,1.3384767]
[1755958199960,0.9610902,114960.0,114950.0,1.3384767]
[1755958200262,0.0166935,114960.0,114950.0,2.0796025]
[1755958200466,1.2493341,114970.0,114960.0,0.1252467]
[1755958200669,1.2493341,114970.0,114960.0,1.39060057]
[1755958200967,1.2493341,114970.0,114960.0,1.38039824]
[1755958201168,1.2493341,114970.0,114960.0,1.31228881]
[1755958201365,1.2826741,114970.0,114960.0,1.3906]
[1755958201569,1.2826741,114970.0,114960.0,1.89059993]
[1755958201769,1.2964441,114970.0,114960.0,1.89059993]
[1755958202068,1.2964441,114970.0,114960.0,0.90834833]
[1755958202264,1.2964441,114970.0,114960.0,1.81228874]